Cogmind - Beta 15 @@@ ROGUE MODE // 2025.08.30 @ 15:29:03 Player: umbrella Result: Destroyed by G-47 Trooper with Particle Gun Performance ------------- Evolutions (0) 0 Regions Visited (1) 200 Robots Destroyed (8) 40 Value Destroyed (218) 218 Prototype IDs (0) 0 Alien Tech Used (0) 0 Bonus (0) 0 TOTAL SCORE: 458 Bonus ------- None Cogmind --------- Core Integrity 0/250 Matter 272/300 Energy 65/100 System Corruption 0% Temperature Cool (10) Movement Walking (120) Location -10/Materials Parts ------- > --- POWER (1) -------- (None) > --- PROPULSION (2) --- Aluminum Leg > --- UTILITY (2) ------ Terrain Scanner > --- WEAPON (2) ------- Small Laser > --- INVENTORY (5) ---- Terrain Scan Processor Assault Rifle Peak State ------------ > --- POWER ------------ Light Ion Engine > --- PROPULSION ------- Aluminum Leg Aluminum Leg > --- UTILITY ---------- (None) > --- WEAPON ----------- EM Pulse Gun Assault Rifle > --- INVENTORY -------- Small Laser [Rating: 5] Favorites ----------- Power Light Ion Engine Engine Light Ion Engine Propulsion Aluminum Leg Leg Aluminum Leg Utility Terrain Scanner Device Terrain Scanner Weapon Assault Rifle Energy Gun EM Pulse Gun Ballistic Gun Assault Rifle Build | -11 -10 ------- Run | Yrd Mat Slots Evolved . | . . Power . | . . Propulsion . | . . Utility . | . . Weapon . | . . Parts Attached 9 | 5 4 Power 2 | 1 1 Engine 2 | 1 1 Core . | . . Reactor . | . . Propulsion 3 | 2 1 Treads . | . . Leg 3 | 2 1 Wheel . | . . Hover . | . . Flight . | . . Utility 1 | . 1 Device 1 | . 1 Storage . | . . Processor . | . . Hackware . | . . Protection . | . . Artifact . | . . Weapon 3 | 2 1 Energy Gun 2 | 1 1 Energy Cannon . | . . Ballistic Gun 1 | 1 . Ballistic Cannon . | . . Launcher . | . . Special Weapon . | . . Impact Weapon . | . . Slashing Weapon . | . . Piercing Weapon . | . . Special Melee Weapon . | . . Unidentified Prototypes . | . . Parts Lost 5 | . 5 Power 2 | . 2 Propulsion 2 | . 2 Utility . | . . Weapon 1 | . 1 Highest Loss Streak 4 | . 4 To Critical Strikes . | . . Average Backups 3 | 2 3 Power . | . . Propulsion . | . . Utility . | . 1 Weapon 1 | 1 1 Tool/Special . | . . Unused Backups 1 | . 1 Power . | . . Propulsion . | . . Utility 1 | . 1 Weapon . | . . Tool/Special . | . . Average Slot Usage (%) 65 | . 65 Engine 11 | . 11 Leg 26 | . 26 Energy Gun 13 | . 13 Ballistic Gun 13 | . 13 Peak Build Rating 5 | 5 5 Average Rating 4 | 3 4 On Entrance 2 | . 5 Naked Turns . | . . Heaviest Build 9 | 7 9 Greatest Support 20 | 20 20 Greatest Overweight (x) . | . . Average Overweight (x) . | . . Largest Inventory Capacity 5 | 5 5 Average Capacity 5 | 5 5 Most Carried 5 | 5 5 Average Carried 3 | 2 3 Final Capacity 5 | 5 5 Final Carried 3 | 3 2 Class Distribution -------------------- 100% | Mutant Dominant Class ---------------- Mutant | -10/Materials Resources | -11 -10 ----------- Run | Yrd Mat Matter Collected 329 | 265 64 Remotely . | . . Salvage Created 269 | 50 219 Parts 17 | 3 14 Haulers Intercepted . | . . Recyclers Shooed . | . . Parts Field Recycled . | . . Retrieved Matter . | . . Parts Self-Destructed . | . . Prevented . | . . Kills | -11 -10 ------- Run | Yrd Mat Combat Hostiles Destroyed 7 | 1 6 Guns 6 | 1 5 AOE 1 | . 1 Classes Destroyed 3 | 1 2 Builder 1 | . 1 Swarmer 2 | . 2 Grunt 5 | 1 4 Best Kill Streak 3 | 1 3 Combat Bots Only 2 | 1 2 Max Kills in Single Turn 2 | 1 2 Gunslinging . | . . Exploded 1 | . 1 Melee . | . . Uniques/NPCs Destroyed . | . . Combat | -11 -10 -------- Run | Yrd Mat Hostile Shots Fired 94 | 8 86 Missed 30 | 1 29 Hits 64 | 7 57 Projectile 64 | 7 57 Critical Strikes 2 | . 2 Damage Taken 720 | 78 642 Core 251 | 12 239 Absorbed by Shields . | . . Core Remaining (%) 95 | 95 . Volleys Fired 36 | 5 31 Largest 2 | 2 2 Hottest 60 | 60 60 Shots Fired 63 | 10 53 Gun 63 | 10 53 Cannon . | . . Launcher . | . . Special . | . . Kinetic 30 | 5 25 Thermal 6 | . 6 Explosive . | . . Electromagnetic 27 | 5 22 Robot Hit Streak 5 | 4 5 Robot Miss Streak 4 | 2 4 Penetration Max . | . . Secondary Targets . | . . Shots Hit Robots 32 | 6 26 Core Hits 16 | 2 14 Critical Kills . | . . Critical Parts Destroyed . | . . Critical Strikes 2 | . 2 Corrupt 2 | . 2 Melee Attacks . | . . Impact . | . . Slashing . | . . Piercing . | . . Sneak Attacks . | . . Combat Hostiles . | . . Follow-up Attacks . | . . Damage Inflicted 550 | 87 463 Guns 497 | 87 410 Cannons . | . . Explosions 53 | . 53 Melee . | . . Ramming . | . . Kinetic 239 | 51 188 Thermal 97 | . 97 Explosive . | . . Electromagnetic 214 | 36 178 Impact . | . . Slashing . | . . Piercing . | . . Highest Corruption . | . . Average Corruption . | . . Corruption Purged . | . . Corruption Blocked . | . . Overload Shots . | . . Overflow Damage . | . . Projectiles . | . . Explosions . | . . Melee . | . . Knockbacks . | . . Impact . | . . Kinetic . | . . Secondary . | . . Self-Inflicted Damage . | . . Shots . | . . Rammed . | . . Targets Rammed . | . . Kicked . | . . Crushed . | . . Highest Temperature 42 | 36 42 Average Temperature 19 | 21 18 Received Heat Transfer 327 | 42 285 Siege Activations . | . . Martial Activations . | . . Shielding Activations . | . . Robots Disrupted . | . . Combat Hostiles . | . . Robots Corrupted . | . . Combat Hostiles . | . . Parts Fried . | . . Impact Corruptions . | . . Robots Melted . | . . Combat Hostiles . | . . Parts Melted . | . . Heat Transferred 200 | . 200 Parts Sabotaged . | . . Parts Stolen . | . . Parts Stripped . | . . Power Chain Reactions 1 | . 1 Alert | -11 -10 ------- Run | Yrd Mat Maximum Alert Level . | . . Low Security (%) 100 | 100 100 Level 1 . | . . Level 2 . | . . Level 3 . | . . Level 4 . | . . Level 5 . | . . High Security . | . . Max Security . | . . Peak Influence 65 | 20 65 Initial 6 | . 6 Average 19 | 3 27 Influence Increases 185 | 20 165 Destroy 0b10 Robot/C 140 | 20 120 Destroy 0b10 Robot/NC 5 | . 5 Destroy Leader 20 | . 20 Disable Machine 15 | . 15 Destroy Structure 5 | . 5 Influence Decreases 165 | 10 155 Entered New Map 4 | . 4 Time Decay 116 | 10 106 Lost Part 45 | . 45 Squads Dispatched 2 | . 2 Investigation . | . . Extermination . | . . Reinforcement 2 | . 2 Assault . | . . Garrison . | . . Intercept . | . . Searches Triggered . | . . Construction Impeded . | . . Haulers Reinforced . | . . Active Scanning Responses . | . . Cargo Convoy Interrupts . | . . Stealth | -11 -10 --------- Run | Yrd Mat Distress Signals . | . . Communications Jammed . | . . Distress Signals . | . . Times Spotted 17 | 1 16 Peak Tracking Total 5 | 1 5 Tactical Retreats . | . . Traps | -11 -10 ------- Run | Yrd Mat Traps Triggered . | . . Indirectly . | . . Trap Hack Attempts . | . . Triggered . | . . Disarmed . | . . Reprogrammed . | . . Reused . | . . Traps Extracted . | . . Installed . | . . Triggered . | . . Machines | -11 -10 ---------- Run | Yrd Mat Machines Disabled 2 | . 2 Max in Single Turn 1 | . 1 Machines Repaired . | . . Machines Dismantled . | . . Machines Sabotaged . | . . Overloaded Fab Kills . | . . Hacking | -11 -10 --------- Run | Yrd Mat Machines Accessed . | . . Terminals . | . . Fabricators . | . . Repair Stations . | . . Recycling Units . | . . Scanalyzers . | . . Garrison Access . | . . Total Hacks . | . . Successful . | . . Failed . | . . Catastrophic . | . . Database Lockouts . | . . Manual . | . . Terminals . | . . Fabricators . | . . Repair Stations . | . . Recycling Units . | . . Scanalyzers . | . . Garrison Access . | . . Terminal Hacks . | . . Fabricator Hacks . | . . Repair Station Hacks . | . . Recycling Unit Hacks . | . . Scanalyzer . | . . Garrison Access Hacks . | . . Unauthorized Hacks . | . . Terminals . | . . Fabricators . | . . Repair Stations . | . . Recycling Units . | . . Scanalyzers . | . . Garrison Access . | . . Data Cores Recovered . | . . Used . | . . Hacking Detections . | . . Full Trace Events . | . . Feedback Events . | . . Feedback Blocked . | . . Robot Schematics Acquired . | . . Robots Built . | . . Authchips . | . . Time . | . . Total Robot Build Rating . | . . Part Schematics Acquired . | . . Parts Built . | . . Authchips . | . . Time . | . . Total Part Build Rating . | . . Parts Repaired . | . . Time . | . . Parts Recycled . | . . Recycled Matter . | . . Retrieved Matter . | . . Retrieved Components . | . . Parts Scanalyzed . | . . Part Schematics Acquired . | . . Parts Damaged . | . . Bothacking | -11 -10 ------------ Run | Yrd Mat Used RIF Installer . | . . Robots Hacked . | . . Non-combat . | . . Combat . | . . Robot Hacks Applied . | . . Relay Couplers Released . | . . Fabnet Peak Effective % . | . . Robots Rewired . | . . Allies Hacked . | . . Hacks Repelled . | . . Allies | -11 -10 -------- Run | Yrd Mat Total Allies . | . . Largest Group . | . . Highest-Rated Group . | . . Highest-Rated Ally . | . . Total Orders . | . . Ally Attacks . | . . Total Damage . | . . Kills . | . . Allies Corrupted . | . . Allies Melted . | . . Intel | -11 -10 ------- Run | Yrd Mat Active Infowar (turns) 2 | . 2 Terrain 2 | . 2 Robot Analysis Total . | . . Derelict Logs Recovered . | . . Drone Launches . | . . Drone Recoveries . | . . Exploration | -11 -10 ------------- Run | Yrd Mat Turns Passed 429 | 155 274 Spaces Moved 330 | 176 154 Core 119 | 119 . Treads . | . . Legs 211 | 57 154 Wheels . | . . Hover . | . . Flight . | . . Fastest Speed 50 | 50 120 Average Speed 94 | 72 120 Slowest Speed 120 | 120 120 Overloaded Moves . | . . Propulsion Burnouts . | . . Robots Hopped . | . . Potential Cave-ins . | . . Cave-ins Triggered . | . . Exploration Rate (%) 15 | 7 24 Regions Visited 1 Branch Regions . Pre-discovered Areas . | . . Known Exits Taken . | . . Unknown Exits Taken 1 | 1 . Scrap Searched . | . . Spaces Dug . | . . Terrain Destroyed 4 | . 4 Melee . | . . Projectile . | . . AOE 4 | . 4 Terrain Rammed . | . . Walls Destroyed . | . . Machines Disabled . | . . Actions | -11 -10 --------- Run | Yrd Mat Total 386 | 193 193 Wait . | . . Move 329 | 175 154 Hop . | . . Pick Up 11 | 8 3 Fast Attach . | . . Attach 8 | 5 3 Detach . | . . Swap 1 | . 1 Drop 1 | . 1 Fire 36 | 5 31 Melee . | . . Ram . | . . Kick . | . . Crush . | . . Escape Stasis . | . . Rewire . | . . Trap . | . . Miscellaneous . | . . Route ------- -11/Scrapyard -10/Materials (discovered 1 exit: [*Min]) History --------- Turn | Location | Event 2 | -11/Scrapyard | Met Revision 17 101 | -11/Scrapyard | Discovered new exit (range 8) 156 | -11/Scrapyard | Entered Materials 281 | -10/Materials | Discovered new exit (range 13) 309 | -10/Materials | Build established: Mutant 422 | -10/Materials | Core integrity fell below 50% 427 | -10/Materials | Core integrity fell below 20% 430 | -10/Materials | Destroyed by G-47 Trooper with Particle Gun Last Messages --------------- 00410_ Machine disabled. 00415_ Aluminum Leg destroyed. Having swapped a part into your inventory to attach the Sml. Laser, a dash marker appears to the left of it in your parts list, and clicking on that marker offers an easier way for mouse users to swap between the two. Doing so is the equivalent of the 'Y' option in the modal swap menu accessed via Ctrl-RMB or '/'. 00416_ Ion Engine destroyed. 00417_ Aluminum Leg destroyed. 00419_ S-10 Pest destroyed. Disabling or destroying stationary machines or terrain requires that a single hit meet or exceed the object's Armor value. Inspect machines by right-clicking on them, and walls via Ctrl-RMB (or as any other object in Keyboard Mode). Hovering the cursor over an object also shows its Armor in the Scan window. Map ----- +----------------------------------------------------+ | ??????????????????????????????????# #??????????? | | ??????????????????????????????????# ############ | | ??????????????????????????????????# ## + | | ?????????????????????????????????## ## # | | ?????????????????????#########+### # # | | ?????????????????? # # | | ?????????????????? + # | | ?????????????????? # """ """ # | | ???????????????????############### # """ """ + | | ?????????????????????????????????### ### """ """ # | | ???????????????????????????#########+#?#####+##### | | ???????????????????????????# #????# #??# | | ???????????????????????????# " ###### #?? | | ???????????????????????????# " + #? | | ???????????????????????????# "" # #? | | ???????????????????????????# "" # # ? | | ??????????????#????????????# " % # # "? | | ??????????????# ???????????# % # + ?? | | ??????? ??????# ??????????# !%+ #??? | | ??????? " ##### ##????############### """ #??? | | ???????R" ##### ####### """" #??? | | ???????"" * gg r " "" #??? | | ???? =% [% < % *#??? | | ???? = g %= #??? | | ???????## #####=%[ "##+########## ##??? | | ????????# ????#"@| | "# ??????????# #???? | | ????????# ????#"""""""#???????#####+##??? | | ????????# ????#########???????# #??? | | ????????+ """ ?#???????????????????# "" #??? | | ????????# """ ?????????????????????# "T #??? | | ????????# """ ?????????????????????# "" #??? | | ??????? ?? ?????????????????????# +??? | | ???????? ????? ??????????????????????# #??? | | ?????????????? ??????????????????????########??? | | ?????????????? ????????????????????????????????? | | ?????????????####????????????????????????????????? | | ?????????????????????????????????????????????????? | | ?????????????????????????????????????????????????? | | ?????????????????????????????????????????????????? | | ?????????????????????????????????????????????????? | | ?????????????????????????????????????????????????? | | ?????????????????????????????????????????????????? | | ?????????????????????????????????????????????????? | | ?????????????????????????????????????????????????? | | ?????????????????????????????????????????????????? | | ?????????????????????????????????????????????????? | | ?????????????????????????????????????????????????? | | ?????????????????????????????????????????????????? | | ?????????????????????????????????????????????????? | | ?????????????????????????????????????????????????? | +----------------------------------------------------+ Best States ------------- Heat Dissipation 25 Energy Generation 10 Energy Capacity 250 Matter Stores 300 Matter Capacity 300 Sight Range 16 Terrain Scan Range 14 Terrain Scan Density 10 Evasion (%) 55 Item Schematics ----------------- None Robot Schematics ------------------ None Fabricated ------------ Nothing Repaired ---------- Nothing Alien Tech Used ----------------- None Achievements -------------- None Challenges ------------ None Game ------ Seed LongswordAerolevCompanion Manual? 0 Play Time 00:08:02 Cumulative 1.1 hours Start 2025.08.29 @ 18:46:10 End 2025.08.30 @ 15:29:03 Sessions 1 Manual Loads 0 Difficulty Rogue Special Mode None Game No. 3 Rogue 3 Adventurer 0 Explorer 0 Win Type - Total 0 Types 0/0/0/0/0/0/0/0/0/0 Lore% 2 Gallery% 1 Achievement% 2 Wizard Run 0 Options --------- Layout 1 ASCII 0 Keyboard 0 Movement Arrows Keybinds 0 Fullscreen 1 Font 24/Terminus Map View 50x35 Zoom Use 0% Tactical HUD 1 Map Filters NONE Filters NONE Steam 1 RUN: fd607100-8b0b-4bc9-b394-47788ffa518f